fUST/lending_fUST_20251116
["ID","MTS","AMOUNT","RATE_DAILY","PERIOD"]
[394084009,1763254246594,-500.0,0.00018651,2]
[394084010,1763254246603,-500.0,0.00018651,2]
[394084011,1763254246612,-500.0,0.00018651,2]
[394084012,1763254246621,-500.0,0.00018651,2]
[394084013,1763254246631,-500.0,0.00018651,2]
[394084014,1763254246640,-500.0,0.00018651,2]
[394084015,1763254246649,-500.0,0.00018651,2]
[394084016,1763254246658,-500.0,0.00018651,2]
[394084017,1763254246669,-500.0,0.00018651,2]
[394084018,1763254246678,-500.0,0.00018651,2]
[394084019,1763254246687,-500.0,0.00018651,2]
[394084020,1763254246696,-500.0,0.00018651,2]
[394084021,1763254246706,-500.0,0.00018651,2]
[394084023,1763254246715,-500.0,0.00018651,2]
[394084025,1763254246724,-20437.92553136,0.00018652,2]
[394084027,1763254246733,-250.0,0.00018652,2]
[394084029,1763254246742,-250.0,0.00018652,2]
[394084030,1763254246751,-250.0,0.00018652,2]
[394084032,1763254246759,-250.0,0.00018652,2]
[394084034,1763254246768,-250.0,0.00018652,2]
[394084036,1763254246777,-250.0,0.00018652,2]
[394084039,1763254246787,-209.40437684,0.00018652,2]
[394084042,1763254246795,-250.0,0.00018652,2]
[394084044,1763254246804,-250.0,0.00018652,2]
[394084047,1763254246814,-250.0,0.00018652,2]
[394084049,1763254246823,-250.0,0.00018652,2]
[394084051,1763254246831,-250.0,0.00018652,2]
[394084053,1763254246840,-267.16,0.00018654,3]
[394084054,1763254246849,-801.48,0.00018654,3]
[394084055,1763254246858,-161.688,0.00018661,2]
[394084056,1763254246867,-186.08203254,0.00018663,2]
[394084057,1763254246877,-500.0,0.00018663,2]
[394084058,1763254246888,-522.46104398,0.00018663,2]
[394084059,1763254246897,-14794.81542505,0.00018664,2]
[394084060,1763254246922,-1008.9185,0.00018664,2]
[394084061,1763254247872,-15475.952593,0.00018664,2]
[394084062,1763254269057,1000.0,0.000186,3]
[394084063,1763254342216,-1789.76351186,0.0001845,2]
[394084065,1763254428528,1000.0,0.00032,120]
[394084066,1763254477226,-170.11,0.00018266,2]
[394084067,1763254479193,-574.85678571,0.00018266,2]
[394084068,1763254559988,1000.0,0.000186,3]
[394084069,1763254627406,-470.88321429,0.0001818,2]
[394084070,1763254627429,-150.0,0.00018238,2]
[394084071,1763254627450,-800.0,0.00018296,2]
[394084072,1763254627475,-462.39795223,0.00018364,2]
[394084073,1763254627497,-800.0,0.00018378,2]
[394084074,1763254627519,-652.3153483,0.00018387,2]
[394084075,1763254627542,-111.96647255,0.00018406,2]
[394084076,1763254629228,-237.88956144,0.00018406,2]
[394084077,1763254631284,534.32,0.00018554,3]
[394084078,1763254650575,3588.38354881,0.00018,2]
[394084079,1763254688425,-168.0,0.00018178,2]
[394084080,1763254688447,-164.90979204,0.00018179,2]
[394084081,1763254688470,-168.0,0.00018279,2]
[394084082,1763254688493,-168.0,0.00018289,2]
[394084083,1763254688516,-450.14396601,0.00018406,2]
[394084084,1763254688541,-98.06437002,0.00018418,2]
[394084085,1763254765639,-150.0,0.00039393,20]
[394084086,1763254765662,-150.0,0.00039393,20]
[394084087,1763254765685,-150.0,0.00039393,20]
[394084088,1763254765708,-152.86126633,0.00039393,20]
[394084089,1763254765731,-729.32980937,0.00039393,30]
[394084090,1763254765754,-895.47431835,0.00039393,120]
[394084091,1763254765777,-1041.51549678,0.00039393,30]
[394084092,1763254765799,-1737.49581755,0.00039393,32]
[394084093,1763254765823,-998.57411223,0.00039393,120]
[394084094,1763254765847,-948.22056992,0.00039393,120]
[394084095,1763254765869,-2772.71726362,0.00039393,120]
[394084096,1763254765891,-621.69124662,0.00039393,120]
[394084097,1763254765913,-638.4399073,0.00039393,120]
[394084098,1763254765936,-1043.07996384,0.00039393,120]
[394084099,1763254765958,-913.83079858,0.00039393,120]
[394084100,1763254765980,-1008.40165695,0.00039393,30]
[394084101,1763254766002,-492.87550831,0.00039393,30]
[394084102,1763254766025,-677.41710063,0.00039393,120]
[394084103,1763254766048,-766.36395883,0.00039393,60]
[394084104,1763254766071,-795.0,0.00039393,60]
[394084105,1763254766093,-7928.23871424,0.00039393,30]
[394084106,1763254766117,-7042.26737753,0.00039393,30]
[394084107,1763254766139,-3096.89111551,0.00039393,30]
[394084108,1763254766165,-2036.70150677,0.00039393,120]
[394084109,1763254793011,1001.87,0.00032877,120]
[394084110,1763254807319,-1217.11043856,0.00018234,2]
[394084111,1763254807341,-467.03956144,0.000183,2]
[394084112,1763254808377,250.0,0.00039385,120]
[394084113,1763254808407,414.0,0.00039385,120]
[394084114,1763254808444,250.0,0.00039385,120]
[394084115,1763254809041,250.0,0.00039385,120]
[394084116,1763254809072,429.318,0.00039385,120]
[394084117,1763254809104,250.0,0.00039385,120]
[394084118,1763254809713,250.0,0.00039385,120]
[394084119,1763254809760,429.318,0.00039385,120]
[394084120,1763254809788,250.0,0.00039385,120]
[394084121,1763254810386,250.0,0.00039385,120]
[394084122,1763254810425,250.0,0.00039385,120]
[394084123,1763254810828,151.0,0.00039385,120]
[394084124,1763254811181,250.0,0.00039385,120]
[394084125,1763254811210,250.0,0.00039385,120]
[394084126,1763254811463,151.0,0.00039385,120]
[394084127,1763254811691,250.0,0.00039385,120]
[394084128,1763254811758,250.0,0.00039385,120]
[394084129,1763254812206,151.0,0.00039385,120]
[394084130,1763254812399,250.0,0.00039385,120]
[394084131,1763254812443,250.0,0.00039385,120]
[394084132,1763254812839,151.0,0.00039385,120]
[394084133,1763254813041,250.0,0.00039385,120]
[394084134,1763254814599,151.0,0.00039385,120]
[394084135,1763254814850,250.0,0.00039385,120]
[394084136,1763254815319,151.0,0.00039385,120]
[394084137,1763254815601,250.0,0.00039385,120]
[394084138,1763254815996,20000.0,0.00039385,120]
[394084139,1763254816037,151.0,0.00039385,120]
[394084140,1763254816282,250.0,0.00039385,120]
[394084141,1763254816668,151.0,0.00039385,120]
[394084142,1763254816904,250.0,0.00039385,120]
[394084143,1763254817129,151.0,0.00039385,120]
[394084144,1763254817264,151.0,0.00039385,120]
[394084145,1763254817533,250.0,0.00039385,120]
[394084146,1763254817768,156.587,0.00039385,120]
[394084147,1763254817914,151.0,0.00039385,120]
[394084148,1763254818214,250.0,0.00039385,120]
[394084149,1763254818404,162.380719,0.00039385,120]
[394084150,1763254818571,151.0,0.00039385,120]
[394084151,1763254818848,250.0,0.00039385,120]
[394084152,1763254819028,168.3888056,0.00039385,120]
[394084153,1763254819487,250.0,0.00039385,120]
[394084154,1763254819681,174.61919141,0.00039385,120]
[394084155,1763254819811,151.0,0.00039385,120]
[394084156,1763254820158,250.0,0.00039385,120]
[394084157,1763254820327,181.08010149,0.00039385,120]
[394084158,1763254820792,250.0,0.00039385,120]
[394084159,1763254820962,187.78006525,0.00039385,120]
[394084160,1763254821444,250.0,0.00039385,120]
[394084161,1763254821669,194.72792766,0.00039385,120]
[394084162,1763254822051,250.0,0.00039385,120]
[394084163,1763254822247,201.93286099,0.00039385,120]
[394084164,1763254822674,250.0,0.00039385,120]
[394084165,1763254822853,209.40437684,0.00039385,120]
[394084166,1763254823296,250.0,0.00039385,120]
[394084167,1763254823779,217.15233878,0.00039385,120]
[394084168,1763254823926,250.0,0.00039385,120]
[394084169,1763254824406,225.18697532,0.00039385,120]
[394084170,1763254824588,250.0,0.00039385,120]
[394084171,1763254825047,233.51889341,0.00039385,120]
[394084172,1763254825201,250.0,0.00039385,120]
[394084173,1763254825970,242.15909246,0.00039385,120]
[394084174,1763254826017,250.0,0.00039385,120]
[394084175,1763254826457,251.11897888,0.00039385,120]
[394084176,1763254826517,250.0,0.00039385,120]
[394084178,1763254827064,251.11897888,0.00039385,120]
[394084179,1763254827186,250.0,0.00039385,120]
[394084220,1763255007436,862.0,0.00018,2]
[394084221,1763255023670,1684.15,0.00018,2]
[394084222,1763255109921,250.0,0.00039385,120]
[394084223,1763255111026,250.0,0.00039385,120]
[394084224,1763255111669,250.0,0.00039385,120]
[394084225,1763255112340,250.0,0.00039385,120]
[394084226,1763255112798,2486.26025243,0.00039385,120]
[394084227,1763255112951,250.0,0.00039385,120]
[394084228,1763255113581,250.0,0.00039385,120]
[394084229,1763255114217,250.0,0.00039385,120]
[394084230,1763255114861,250.0,0.00039385,120]
[394084231,1763255115499,250.0,0.00039385,120]
[394084232,1763255116083,250.0,0.00039385,120]
[394084233,1763255116733,250.0,0.00039385,120]
[394084234,1763255117470,250.0,0.00039385,120]
[394084235,1763255118457,250.0,0.00039385,120]
[394084236,1763255119089,250.0,0.00039385,120]
[394084237,1763255119755,250.0,0.00039385,120]
[394084238,1763255120391,250.0,0.00039385,120]
[394084239,1763255121021,250.0,0.00039385,120]
[394084240,1763255121661,250.0,0.00039385,120]
[394084241,1763255122308,250.0,0.00039385,120]
[394084242,1763255122942,250.0,0.00039385,120]
[394084245,1763255407548,250.0,0.00039385,120]
[394084246,1763255408194,250.0,0.00039385,120]
[394084247,1763255408813,250.0,0.00039385,120]
[394084248,1763255409469,250.0,0.00039385,120]
[394084249,1763255410151,250.0,0.00039385,120]
[394084250,1763255411021,250.0,0.00039385,120]
[394084251,1763255411693,250.0,0.00039385,120]
[394084252,1763255412304,250.0,0.00039385,120]
[394084253,1763255412946,250.0,0.00039385,120]
[394084254,1763255413578,250.0,0.00039385,120]
[394084255,1763255414188,250.0,0.00039385,120]
[394084256,1763255414915,250.0,0.00039385,120]
[394084257,1763255415566,250.0,0.00039385,120]
[394084258,1763255418930,250.0,0.00039385,120]
[394084259,1763255419563,250.0,0.00039385,120]
[394084260,1763255420215,250.0,0.00039385,120]
[394084261,1763255420851,250.0,0.00039385,120]
[394084262,1763255421950,250.0,0.00039385,120]
[394084263,1763255422589,250.0,0.00039385,120]
[394084264,1763255423206,250.0,0.00039385,120]
[394084267,1763255432038,300.053681,0.00030137,120]
[394084312,1763255432516,-1494.26638723,0.000182,2]
[394084314,1763255432526,-277.92722427,0.000183,2]
[394084316,1763255432535,-150.0,0.00018315,2]
[394084318,1763255432545,-1436.0,0.00018359,2]
[394084320,1763255432554,-69.93562998,0.00018418,2]
[394084322,1763255432563,-182.51264876,0.00018473,2]
[394084368,1763255438399,-736.12090922,0.00018473,2]
[394084371,1763255438410,-546.5929579,0.00018473,2]
[394084373,1763255438420,-168.0,0.00018487,2]
[394084375,1763255438429,-168.0,0.00018538,2]
[394084377,1763255438438,-396.04318741,0.00018546,2]
[394084380,1763255438457,-3353.24392143,0.00018546,2]
[394084382,1763255438466,-300.0,0.00018562,2]
[394084384,1763255438476,-1200.0,0.00018562,2]
[394084385,1763255438485,-245.88570522,0.00018563,2]
[394084386,1763255438495,-166.994,0.00018563,2]
[394084387,1763255438504,-216.49521936,0.00018573,2]
[394084388,1763255438515,-263.26685921,0.00018573,2]
[394084407,1763255440714,-3e-08,0.00018573,2]
[394084408,1763255440725,-24.13675879,0.00018573,2]
[394084409,1763255440734,-500.0,0.00018573,2]
[394084410,1763255440743,-90.71244121,0.00018573,2]
[394084411,1763255440755,-409.28755879,0.00018573,2]
[394084412,1763255440764,-500.0,0.00018573,2]
[394084413,1763255440773,-177.5751276,0.00018573,2]
[394084435,1763255711496,250.0,0.00039384,120]
[394084436,1763255712112,250.0,0.00039384,120]
[394084437,1763255712753,250.0,0.00039384,120]
[394084438,1763255713353,250.0,0.00039384,120]
[394084440,1763255713997,250.0,0.00039384,120]
[394084441,1763255714661,250.0,0.00039384,120]
[394084443,1763255715338,250.0,0.00039384,120]
[394084444,1763255715962,250.0,0.00039384,120]
[394084446,1763255716604,250.0,0.00039384,120]
[394084447,1763255717207,250.0,0.00039384,120]
[394084448,1763255717823,250.0,0.00039384,120]
[394084449,1763255718444,250.0,0.00039384,120]
[394084450,1763255719091,250.0,0.00039384,120]
[394084451,1763255719690,250.0,0.00039384,120]
[394084452,1763255720304,250.0,0.00039384,120]
[394084453,1763255720930,250.0,0.00039384,120]
[394084454,1763255721798,250.0,0.00039384,120]
[394084455,1763255722463,250.0,0.00039384,120]
[394084456,1763255722951,250.0,0.00039384,120]
[394084457,1763255723584,250.0,0.00039384,120]
[394084460,1763256006426,250.0,0.00039385,120]
[394084462,1763256007219,250.0,0.00039385,120]
[394084463,1763256007821,250.0,0.00039385,120]
[394084464,1763256008564,250.0,0.00039385,120]
[394084465,1763256009064,250.0,0.00039385,120]
[394084466,1763256009662,250.0,0.00039385,120]
[394084467,1763256010306,250.0,0.00039385,120]
[394084468,1763256010913,250.0,0.00039385,120]
[394084469,1763256011555,250.0,0.00039385,120]
[394084470,1763256012175,250.0,0.00039385,120]
[394084471,1763256012794,250.0,0.00039385,120]
[394084472,1763256013458,250.0,0.00039385,120]
[394084473,1763256014064,250.0,0.00039385,120]
[394084474,1763256014687,250.0,0.00039385,120]
[394084475,1763256015740,250.0,0.00039385,120]
[394084476,1763256016476,250.0,0.00039385,120]
[394084477,1763256017210,250.0,0.00039385,120]
[394084478,1763256017843,250.0,0.00039385,120]
[394084479,1763256018459,250.0,0.00039385,120]
[394084480,1763256019093,250.0,0.00039385,120]
[394084481,1763256082257,-606.59914761,0.00018452,2]
[394084482,1763256084244,-181.88495492,0.00018452,2]
[394084483,1763256087491,-500.0,0.00018452,2]
[394084484,1763256088938,-300.0,0.00018452,2]
[394084485,1763256091660,-344.8149599,0.00018452,2]
[394084486,1763256094405,-222.2980915,0.00018452,2]
[394084487,1763256095780,-300.576,0.00018452,2]
[394084488,1763256099106,-354.12447182,0.00018452,2]
[394084489,1763256099178,3670.0,0.00018,2]
[394084491,1763256188011,408.13451118,0.00017826,2]
[394084492,1763256262253,-162.506587,0.00018169,2]
[394084493,1763256263770,-200.873582,0.00018169,2]
[394084494,1763256266252,-356.50548942,0.00018169,2]
[394084495,1763256269784,-205.35222793,0.00018169,2]
[394084496,1763256272460,-181.682031,0.00018169,2]
[394084497,1763256276932,-308.34641219,0.00018169,2]
[394084501,1763256298762,368.94542863,0.00017819,2]
[394084502,1763256300935,280.00322709,0.00017826,2]
[394084503,1763256303897,503.50180295,0.00017826,2]
[394084507,1763256313591,250.0,0.00039385,120]
[394084508,1763256314195,250.0,0.00039385,120]
[394084509,1763256314828,250.0,0.00039385,120]
[394084510,1763256315429,250.0,0.00039385,120]
[394084511,1763256316053,250.0,0.00039385,120]
[394084512,1763256316747,250.0,0.00039385,120]
[394084513,1763256317354,250.0,0.00039385,120]
[394084514,1763256317993,250.0,0.00039385,120]
[394084515,1763256318589,250.0,0.00039385,120]
[394084516,1763256319194,250.0,0.00039385,120]
[394084518,1763256319909,250.0,0.00039385,120]
[394084519,1763256320548,250.0,0.00039385,120]
[394084520,1763256321251,250.0,0.00039385,120]
[394084521,1763256321768,250.0,0.00039385,120]
[394084522,1763256322385,250.0,0.00039385,120]
[394084523,1763256323000,250.0,0.00039385,120]
[394084524,1763256323610,250.0,0.00039385,120]
[394084525,1763256324249,250.0,0.00039385,120]
[394084526,1763256325001,250.0,0.00039385,120]
[394084527,1763256325665,250.0,0.00039385,120]
[394084531,1763256338180,627.003188,0.00013699,2]
[394084590,1763256466803,25252.17305511,0.00018,2]
[394084591,1763256466830,17930.69044583,0.00018,2]
[394084598,1763256505849,168.0,0.00018039,2]
[394084601,1763256510168,9832.01,0.00017,2]
[394084602,1763256510191,14153.29141145,0.00017,2]
[394084603,1763256511788,3414.0,0.00017815,2]
[394084622,1763256524399,4796.82953597,0.00018,2]
[394084626,1763256525015,-56.73367046,0.00018169,2]
[394084627,1763256525038,-206.73428582,0.00018297,2]
[394084628,1763256526478,-435.15983342,0.00018297,2]
[394084629,1763256528500,-254.54025844,0.00018297,2]
[394084630,1763256529933,-234.66703586,0.00018297,2]
[394084631,1763256531908,-184.80898443,0.00018297,2]
[394084632,1763256533437,-291.36681348,0.00018297,2]
[394084633,1763256536525,-200.12729724,0.00018297,2]
[394084634,1763256538021,-167.82076165,0.00018297,2]
[394084635,1763256540521,-403.51387007,0.00018297,2]
[394084636,1763256543031,159.84,5e-05,2]
[394084637,1763256543325,159.84,6.5e-05,2]
[394084639,1763256543748,159.84,8e-05,2]
[394084640,1763256543890,-326.78625483,0.00018297,2]
[394084641,1763256544077,159.84,9.5e-05,2]
[394084642,1763256544392,159.84,0.00011,2]
[394084643,1763256544690,159.84,0.000125,2]
[394084644,1763256548870,-335.12864569,0.00018297,2]
[394084645,1763256550232,-181.20326146,0.00018297,2]
[394084646,1763256553328,-192.14269761,0.00018297,2]
[394084647,1763256553352,-55.47502918,0.00018319,2]
[394084648,1763256555336,-94.52497082,0.00018319,2]
[394084649,1763256555360,-300.0,0.0001847,2]
[394084650,1763256555381,-1.96115911,0.0001847,2]
[394084651,1763256555673,3749.28710884,0.00018218,2]
[394084652,1763256557217,-500.0,0.0001847,2]
[394084653,1763256559172,-603.0581252,0.0001847,2]
[394084654,1763256561133,-94.98071569,0.0001847,2]
[394084655,1763256561161,-174.93315438,0.0001847,2]
[394084656,1763256563049,-500.0,0.0001847,2]
[394084657,1763256563512,-523.06684562,0.0001847,2]
[394084658,1763256563540,-300.0,0.0001847,2]
[394084659,1763256565032,-230.08612993,0.00018471,2]
[394084660,1763256566574,-488.14892051,0.00018471,2]
[394084661,1763256568082,200.12729724,0.0001847,2]
[394084662,1763256569654,-178.47434018,0.00018471,2]
[394084663,1763256571157,-288.37768498,0.00018471,2]
[394084664,1763256573230,-838.74520133,0.00018471,2]
[394084665,1763256575232,-223.81610509,0.00018471,2]
[394084666,1763256577292,-289.44003765,0.00018471,2]
[394084667,1763256578913,-178.18563153,0.00018471,2]
[394084668,1763256579104,-2319.60335867,0.00018471,2]
[394084669,1763256579150,-10000.01,0.00018471,2]
[394084670,1763256579166,-10000.01,0.00018471,2]
[394084671,1763256579219,-398.8397343,0.00018471,2]
[394084672,1763256580147,-189.90951677,0.00018473,2]
[394084675,1763256581783,-265.33296414,0.00018473,2]
[394084676,1763256583656,-44.75751909,0.00018473,2]
[394084677,1763256583679,-500.0,0.00018473,2]
[394084678,1763256583700,-161.49790074,0.00018473,2]
[394084679,1763256586210,-153.16895215,0.00018473,2]
[394084680,1763256588965,-199.56593393,0.00018473,2]
[394084681,1763256588987,-5.62204383,0.00018491,2]
[394084682,1763256591434,-413.16149395,0.00018491,2]
[394084683,1763256594850,-250.0,0.00018491,2]
[394084684,1763256596445,-260.48795853,0.00018491,2]
[394084685,1763256597968,-300.0,0.00018491,2]
[394084686,1763256598121,3748.79673854,0.00018491,2]
[394084687,1763256601588,241.87,5e-05,2]
[394084688,1763256601930,241.87,5.2e-05,2]
[394084689,1763256602240,241.87,5.4e-05,2]
[394084690,1763256602521,241.87,5.6e-05,2]
[394084691,1763256602842,241.87,5.7e-05,2]
[394084692,1763256603124,241.87,5.9e-05,2]
[394084693,1763256603428,241.87,6.1e-05,2]
[394084694,1763256603783,241.87,6.3e-05,2]
[394084695,1763256604120,241.87,6.5e-05,2]
[394084696,1763256604414,241.87,6.7e-05,2]
[394084697,1763256604808,241.87,6.8e-05,2]
[394084698,1763256605094,241.87,7e-05,2]
[394084699,1763256605156,-242.72850369,0.00018491,2]
[394084700,1763256605181,-25.30604808,0.00018573,2]
[394084701,1763256605403,241.87,7.2e-05,2]
[394084702,1763256605686,241.87,7.4e-05,2]
[394084703,1763256605988,241.87,7.6e-05,2]
[394084704,1763256606312,241.87,7.8e-05,2]
[394084705,1763256606595,241.87,7.9e-05,2]
[394084706,1763256606935,241.87,8.1e-05,2]
[394084707,1763256607439,-164.91635457,0.00018573,2]
[394084708,1763256607472,241.87,8.3e-05,2]
[394084709,1763256607506,177.34962947,0.00039384,20]
[394084710,1763256607555,241.87,8.5e-05,2]
[394084711,1763256607836,241.87,8.7e-05,2]
[394084712,1763256608227,241.87,8.9e-05,2]
[394084713,1763256608499,241.87,9e-05,2]
[394084714,1763256608812,241.87,9.2e-05,2]
[394084715,1763256609109,241.87,9.4e-05,2]
[394084716,1763256609179,-164.91635457,0.00018573,2]
[394084717,1763256609390,-2593.80042067,0.00018573,2]
[394084718,1763256609424,-1724.15194507,0.00018573,2]
[394084719,1763256609596,-1364.10526852,0.00018573,2]
[394084720,1763256609636,308.35546062,0.00039384,120]
[394084721,1763256609673,241.87,9.6e-05,2]
[394084722,1763256609806,167.59338042,0.00039384,120]
[394084723,1763256610518,241.87,9.8e-05,2]
[394084724,1763256610575,250.0,0.00039384,120]
[394084726,1763256610928,241.87,0.0001,2]
[394084727,1763256611200,250.0,0.00039384,120]
[394084728,1763256611235,241.87,0.000101,2]
[394084729,1763256611484,164.78309501,0.00039384,20]
[394084730,1763256611526,241.87,0.000103,2]
[394084731,1763256611805,241.87,0.000105,2]
[394084732,1763256611845,250.0,0.00039384,120]
[394084733,1763256612090,241.87,0.000107,2]
[394084735,1763256612530,241.87,0.000109,2]
[394084736,1763256612575,250.0,0.00039384,120]
[394084737,1763256613136,250.0,0.00039384,120]
[394084738,1763256613309,241.87,0.000111,2]
[394084739,1763256613626,241.87,0.000112,2]
[394084740,1763256613745,242.88010278,0.00018573,2]
[394084741,1763256613781,250.0,0.00039384,120]
[394084742,1763256613910,241.87,0.000114,2]
[394084743,1763256614293,241.87,0.000116,2]
[394084744,1763256614390,250.0,0.00039384,120]
[394084745,1763256614620,241.87,0.000118,2]
[394084746,1763256614896,241.87,0.00012,2]
[394084747,1763256615183,241.87,0.000122,2]
[394084748,1763256615580,250.0,0.00039384,120]
[394084749,1763256616099,241.87,0.000123,2]
[394084750,1763256616243,250.0,0.00039384,120]
[394084751,1763256616799,241.87,0.000125,2]
[394084752,1763256616881,250.0,0.00039384,120]
[394084753,1763256621901,241.87,0.000127,2]
[394084754,1763256622257,241.87,0.000129,2]
[394084755,1763256622798,241.87,0.000131,2]
[394084756,1763256623036,241.87,0.000133,2]
[394084757,1763256623393,241.87,0.000134,2]
[394084758,1763256623717,241.87,0.000136,2]
[394084759,1763256624027,241.87,0.000138,2]
[394084760,1763256624316,241.87,0.00014,2]
[394084761,1763256625528,-168.0,0.00018589,2]
[394084762,1763256625549,-168.96338532,0.00018617,2]
[394084785,1763256632703,-192.95151523,0.00018617,2]
[394084786,1763256632712,-168.0,0.00018617,2]
[394084787,1763256632722,-300.0,0.00018659,2]
[394084788,1763256632731,-704.0,0.00018659,2]
[394084789,1763256632742,-181.20139659,0.0001866,2]
[394084790,1763256632751,-500.0,0.0001866,2]
[394084791,1763256632760,-301.87865734,0.0001866,2]
[394084792,1763256632769,-500.0,0.0001866,2]
[394084793,1763256632788,-500.0,0.0001866,2]
[394084794,1763256632799,-459.6406714,0.0001866,2]
[394084795,1763256632809,-500.0,0.0001866,2]
[394084796,1763256632819,-496.88052562,0.0001866,2]
[394084798,1763256632970,-3.11947438,0.0001866,2]
[394084799,1763256632980,-248.61581635,0.0001866,2]
[394084800,1763256632989,-523.27948557,0.0001866,2]
[394084801,1763256632997,-500.0,0.0001866,2]
[394084802,1763256633007,-500.0,0.0001866,2]
[394084803,1763256633016,-578.30199425,0.0001866,2]
[394084804,1763256633025,-500.0,0.0001866,2]
[394084805,1763256633037,-500.0,0.0001866,2]
[394084806,1763256633047,-500.0,0.0001866,2]
[394084807,1763256633056,-500.0,0.0001866,2]
[394084808,1763256633066,-500.0,0.0001866,2]
[394084809,1763256633075,-500.0,0.0001866,2]
[394084810,1763256633084,-500.0,0.0001866,2]
[394084811,1763256633093,-500.0,0.0001866,2]
[394084812,1763256633102,-544.58360817,0.0001866,2]
[394084813,1763256633111,-500.0,0.0001866,2]
[394084814,1763256633120,-500.0,0.0001866,2]
[394084815,1763256633130,-500.0,0.0001866,2]
[394084816,1763256633139,-500.0,0.0001866,2]
[394084817,1763256633253,-500.0,0.0001866,2]
[394084818,1763256633263,-500.0,0.0001866,2]
[394084819,1763256633273,-500.0,0.0001866,2]
[394084820,1763256633282,-294.25688033,0.0001866,2]
[394084821,1763256633294,-500.0,0.0001866,2]
[394084822,1763256633303,-500.0,0.0001866,2]
[394084823,1763256633312,-500.0,0.0001866,2]
[394084824,1763256633321,-500.0,0.0001866,2]
[394084825,1763256633331,-500.0,0.0001866,2]
[394084826,1763256633340,-500.0,0.0001866,2]
[394084827,1763256633348,-500.0,0.0001866,2]
[394084828,1763256633359,-500.0,0.0001866,2]
[394084829,1763256633368,-500.0,0.0001866,2]
[394084830,1763256633377,-500.0,0.0001866,2]
[394084831,1763256633387,-500.0,0.0001866,2]
[394084832,1763256633396,-500.0,0.0001866,2]
[394084833,1763256633405,-500.0,0.0001866,2]
[394084834,1763256633414,-264.43372971,0.0001866,2]
[394084835,1763256633423,-500.0,0.0001866,2]
[394084836,1763256633433,-500.0,0.0001866,2]
[394084837,1763256633442,-500.0,0.0001866,2]
[394084838,1763256633451,-291.13241602,0.00018661,2]
[394084839,1763256633460,-166.995,0.00018662,2]
[394084840,1763256633469,-267.16,0.00018663,3]
[394084841,1763256633478,-801.48,0.00018663,3]
[394084842,1763256633487,-500.0,0.00018672,2]
[394084843,1763256633496,-215.72273078,0.00018672,2]
[394084844,1763256633505,-530.83743756,0.00018672,2]
[394084845,1763256633514,-250.08,0.00018672,2]